Cogmind - Beta 16 @@@ ROGUE MODE // 2026.01.02 @ 16:34:53 Player: winnking222 Result: Destroyed by Superfortress with Concept Heavy Railcannon Performance ------------- Evolutions (7) 3500 Regions Visited (9) 1800 Robots Destroyed (36) 180 Value Destroyed (1049) 1049 Prototype IDs (19) 380 Alien Tech Used (5) 1000 Bonus (800) 800 TOTAL SCORE: 8709 Bonus ------- Registered with UFD 300 Met Optimus in HQ 500 Cogmind --------- Core Integrity 0/1300 Matter 272/300 Energy 91/100 System Corruption 2% Temperature Cool (0) Movement Core (50) Location -3/Protoforge Parts ------- > --- POWER (2) -------- (None) > --- PROPULSION (8) --- (None) > --- UTILITY (9) ------ Enhanced Optical Array Advanced Signal Interpreter > --- WEAPON (2) ------- (None) > --- INVENTORY (5) ---- Dimensional Node Initializer High-powered Transdimensional Reconstructor Sigix Broadsword Peak State ------------ > --- POWER ------------ Micro Fission Core Micro Fission Core > --- PROPULSION ------- Xenon Bombardment Thruster Cooled VTOL Module Nuclear Pulse Thruster Nuclear Pulse Array Nuclear Pulse Array > --- UTILITY ---------- Small Storage Unit Structural Scanner Enhanced Optical Array Advanced Sensor Array Advanced Signal Interpreter Advanced ECM Suite Improved Phase Shifter Phase Redirector Advanced Hacking Suite > --- WEAPON ----------- Sigix Broadsword > --- INVENTORY -------- Micro Fission Core Subatomic Replicator Smartbomb Launcher Vortex Trap [Rating: 129] Favorites ----------- Power Ion Engine Engine Ion Engine Power Core Micro Fission Core Propulsion Light Treads Treads Light Treads Wheel Subdweller Monowheel Flight Unit Flight Unit Utility Seismic Detector Device Seismic Detector Storage Large Storage Unit Processor Enhanced Optical Array Hackware Advanced Hacking Suite Protection Improved Propulsion Shielding Artifact Phase Redirector Weapon Light Cannon Energy Gun EM Shotgun Ballistic Gun Subdweller Machine Gun Ballistic Cannon Light Cannon Launcher Rocket Array Special Weapon Improved Plasma Cutter Slashing Weapon Sigix Broadsword Piercing Weapon Heavy Pick Build | -11 -10 -10 -9 -6 -5 -4 -3 -3 -3 ------- Run | Yrd Mat Sub Scr Fac Fac Fac Res Qua Frg Slots Evolved 14 | . . . . 8 2 2 2 . . Power 1 | . . . . . 1 . . . . Propulsion 6 | . . . . 4 . 1 1 . . Utility 7 | . . . . 4 1 1 1 . . Weapon . | . . . . . . . . . . Parts Attached 72 | 7 10 5 5 15 11 8 3 7 1 Power 9 | 1 1 1 1 1 . 2 . 2 . Engine 4 | 1 1 1 1 . . . . . . Core 5 | . . . . 1 . 2 . 2 . Reactor . | . . . . . . . . . . Propulsion 18 | 2 . 2 2 6 4 1 1 . . Treads 2 | 2 . . . . . . . . . Leg . | . . . . . . . . . . Wheel 3 | . . 2 1 . . . . . . Hover . | . . . . . . . . . . Flight 13 | . . . 1 6 4 1 1 . . Utility 28 | 2 2 1 . 7 5 4 2 4 1 Device 15 | 1 1 . . 3 3 3 1 2 1 Storage 3 | 1 1 . . 1 . . . . . Processor 3 | . . . . 3 . . . . . Hackware 3 | . . . . . 2 . 1 . . Protection 2 | . . 1 . . . 1 . . . Artifact 2 | . . . . . . . . 2 . Weapon 17 | 2 7 1 2 1 2 1 . 1 . Energy Gun 5 | 2 3 . . . . . . . . Energy Cannon . | . . . . . . . . . . Ballistic Gun 4 | . 2 1 1 . . . . . . Ballistic Cannon 2 | . 2 . . . . . . . . Launcher 1 | . . . . 1 . . . . . Special Weapon 2 | . . . . . 2 . . . . Impact Weapon . | . . . . . . . . . . Slashing Weapon 1 | . . . . . . . . 1 . Piercing Weapon 2 | . . . 1 . . 1 . . . Special Melee Weapon . | . . . . . . . . . . Unidentified Prototypes 12 | . 1 . . 2 2 1 . 5 1 Parts Lost 28 | . 2 4 . 3 1 3 4 1 10 Power 2 | . . 1 . . . . . 1 . Propulsion 12 | . . 2 . 3 . . 2 . 5 Utility 10 | . . 1 . . . 2 2 . 5 Weapon 4 | . 2 . . . 1 1 . . . Highest Loss Streak 6 | . 1 3 . 2 1 3 4 1 6 To Critical Strikes . | . . . . . . . . . . Average Backups 9 | 5 7 12 12 6 5 4 4 4 4 Power . | . . . . . . . 1 1 . Propulsion 2 | 3 2 4 4 . . 1 . . . Utility 1 | . . 1 2 2 2 1 1 1 . Weapon 3 | . 3 5 4 2 1 1 1 1 1 Tool/Special . | . . . . . . . . . . Unused Backups 22 | . 7 1 5 1 2 1 . . 5 Power 1 | . . . 1 . . . . . . Propulsion 4 | . 3 1 . . . . . . . Utility 3 | . . . . . 2 1 . . . Weapon 10 | . 4 . 4 1 . . . . 1 Tool/Special 4 | . . . . . . . . . 4 Average Slot Usage (%) 89 | . 99 96 89 77 83 89 83 76 55 Engine 8 | . 14 12 14 1 . . . . . Core 2 | . . . . 4 5 9 9 8 6 Treads 9 | . 28 23 . . . . . . . Wheel 6 | . . 2 20 . . . . . . Flight 10 | . . . 3 29 28 30 28 23 14 Device 14 | . 14 13 14 19 18 15 18 12 11 Storage 10 | . 14 14 14 6 5 5 4 4 3 Processor 3 | . . . . 12 11 10 9 9 9 Hackware 1 | . . . . . 3 5 8 7 3 Energy Gun 2 | . 14 . . . . . . . . Ballistic Gun 4 | . . 8 11 . . . . . . Ballistic Cannon 8 | . 13 19 9 . . . . . . Piercing Weapon 1 | . . . 2 1 4 5 4 1 . Peak Build Rating 129 | 7 10 13 20 46 83 105 105 129 128 Average Rating 34 | 5 8 8 13 38 74 96 100 117 81 On Entrance 48 | . 7 8 13 20 41 83 96 85 128 Avg Prop Armor Cover (%) 4 | . . 5 4 4 . 6 . . . Naked Turns . | . . . . . . . . . . Heaviest Build 45 | 14 32 33 33 18 21 28 26 45 44 Greatest Support 57 | 40 40 40 32 24 41 50 57 49 49 Greatest Overweight (x) 2 | 1 . 1 2 . . . . . 1 Average Overweight (x) . | . . . 1 . . . . . . Largest Inventory Capacity 15 | 8 15 15 15 15 8 8 8 8 8 Average Capacity 11 | 7 9 15 15 8 8 8 8 8 7 Most Carried 15 | 7 12 15 15 14 8 8 8 8 8 Average Carried 10 | 5 7 12 14 8 7 7 7 7 7 Final Capacity 15 | 8 15 15 15 8 8 8 8 8 5 Final Carried 15 | 6 11 15 15 8 8 7 6 7 4 Class Distribution -------------------- 66% | Mutant 22% | Scientist-Scout 9% | Scout Dominant Class ---------------- Mutant | -10/Materials Mutant | -10/Subcaves Mutant | -9/Scraptown Scout | -6/Factory Scientist-Scout | -5/Factory Scientist-Scout | -4/Factory Scientist-Scout | -3/Research Hacker-Ninja | -3/Quarantine Scout | -3/Protoforge Resources | -11 -10 -10 -9 -6 -5 -4 -3 -3 -3 ----------- Run | Yrd Mat Sub Scr Fac Fac Fac Res Qua Frg Matter Collected 1220 | 270 156 283 40 155 135 115 28 . 38 Remotely . | . . . . . . . . . . Salvage Created 1312 | 192 803 22 . . 137 92 28 . 38 Parts 82 | 12 52 1 . . 5 8 3 . 1 Haulers Intercepted 3 | . 2 . . . 1 . . . . Recyclers Shooed . | . . . . . . . . . . Parts Field Recycled . | . . . . . . . . . . Retrieved Matter . | . . . . . . . . . . Parts Self-Destructed 6 | . . 6 . . . . . . . Prevented . | . . . . . . . . . . Parts Restored . | . . . . . . . . . . Kills | -11 -10 -10 -9 -6 -5 -4 -3 -3 -3 ------- Run | Yrd Mat Sub Scr Fac Fac Fac Res Qua Frg Combat Hostiles Destroyed 19 | . 17 1 . . . 1 . . . Melee 1 | . . . . . . 1 . . . Guns 13 | . 12 1 . . . . . . . Cannons 5 | . 5 . . . . . . . . Classes Destroyed 10 | 2 5 1 . . . 1 1 . . Worker 1 | . 1 . . . . . . . . Builder 1 | . . . . . . . 1 . . Tunneler 5 | 4 1 . . . . . . . . Hauler 3 | . 2 . . . 1 . . . . Recycler 1 | 1 . . . . . . . . . Watcher 6 | . 3 . . . 1 1 . . 1 Swarmer 3 | . 3 . . . . . . . . Grunt 14 | . 14 . . . . . . . . Programmer 1 | . . . . . . 1 . . . Subdweller 1 | . . 1 . . . . . . . Best Kill Streak 4 | 2 4 1 . . 1 1 1 . 1 Combat Bots Only 4 | . 4 1 . . . 1 . . . Max Kills in Single Turn 2 | 1 2 1 . . 1 1 1 . 1 Gunslinging . | . . . . . . . . . . Exploded . | . . . . . . . . . . Melee 1 | . . . . . . 1 . . . Uniques/NPCs Destroyed . | . . . . . . . . . . Combat | -11 -10 -10 -9 -6 -5 -4 -3 -3 -3 -------- Run | Yrd Mat Sub Scr Fac Fac Fac Res Qua Frg Hostile Shots Fired 361 | . 80 26 . 42 4 92 51 5 61 Missed 182 | . 22 4 . 25 2 59 38 3 29 Hits 179 | . 58 22 . 17 2 33 13 2 32 Projectile 179 | . 58 22 . 17 2 33 13 2 32 Critical Strikes 9 | . 1 2 . 1 . 1 . 1 3 Actively Blocked 1 | . . . . . . 1 . . . Part Disruptions 1 | . . . . . . 1 . . . Damage Taken 3781 | . 678 421 . 180 37 584 298 100 1483 Core 1633 | . 102 118 . 76 . 79 118 60 1080 Absorbed by Shields 8 | . . . . . . . . . 8 Redirected to Core 13 | . . . . . . . . 13 . Redirected to Shielding 107 | . . . . . . 107 . . . Regen/Repaired (Parts) 47 | . . . . . . . . 42 5 Core Remaining (%) 79 | 100 . . 12 91 100 93 . . . Volleys Fired 91 | 13 56 22 . . . . . . . Largest 2 | 2 2 2 . . . . . . . Hottest 90 | 90 90 60 . . . . . . . Shots Fired 176 | 26 112 38 . . . . . . . Gun 111 | 26 68 17 . . . . . . . Cannon 65 | . 44 21 . . . . . . . Launcher . | . . . . . . . . . . Special . | . . . . . . . . . . Kinetic 82 | . 44 38 . . . . . . . Thermal 37 | 26 11 . . . . . . . . Explosive . | . . . . . . . . . . Electromagnetic 57 | . 57 . . . . . . . . Robot Hit Streak 14 | 7 14 7 . . . . . . . Robot Miss Streak 3 | 2 3 2 . . . . . . . Penetration Max . | . . . . . . . . . . Secondary Targets 1 | . 1 . . . . . . . . Max Gunslinging Chain 1 | . 1 . . . . . . . . Shots Hit Robots 120 | 19 77 13 . . 4 3 1 1 2 Core Hits 51 | 6 39 2 . . 2 2 . . . Critical Kills . | . . . . . . . . . . Critical Parts Destroyed . | . . . . . . . . . . Critical Strikes 1 | . . . . . . 1 . . . Impale 1 | . . . . . . 1 . . . Melee Attacks 84 | . . . . 2 37 22 3 12 8 Impact . | . . . . . . . . . . Slashing 14 | . . . . . . . . 6 8 Piercing 70 | . . . . 2 37 22 3 6 . Sneak Attacks 2 | . . . . . 1 . 1 . . Combat Hostiles . | . . . . . . . . . . Follow-up Attacks . | . . . . . . . . . . Damage Inflicted 2553 | 222 1292 252 . . 220 161 146 89 171 Guns 1127 | 222 741 164 . . . . . . . Cannons 527 | . 439 88 . . . . . . . Explosions 112 | . 112 . . . . . . . . Melee 787 | . . . . . 220 161 146 89 171 Ramming . | . . . . . . . . . . Kinetic 691 | . 439 252 . . . . . . . Thermal 402 | 222 180 . . . . . . . . Explosive . | . . . . . . . . . . Electromagnetic 673 | . 673 . . . . . . . . Impact . | . . . . . . . . . . Slashing 260 | . . . . . . . . 89 171 Piercing 527 | . . . . . 220 161 146 . . Highest Corruption 4 | . . . . . . 4 . . 2 Average Corruption 1 | . . . . . . 1 . . 1 Corruption Purged . | . . . . . . . . . . Corruption Blocked . | . . . . . . . . . . Effects 6 | . . . . . . 5 . . 1 Message Errors 1 | . . . . . . 1 . . . Matter Fused 2 | . . . . . . 2 . . . Heat Flow Errors 1 | . . . . . . 1 . . . Energy Discharges 1 | . . . . . . . . . 1 Data Loss (major) 1 | . . . . . . 1 . . . Overload Shots . | . . . . . . . . . . Overflow Damage 316 | . 16 . . . 25 74 106 34 61 Projectiles . | . . . . . . . . . . Explosions 16 | . 16 . . . . . . . . Melee 300 | . . . . . 25 74 106 34 61 Knockbacks 4 | . 3 1 . . . . . . . Impact . | . . . . . . . . . . Kinetic 4 | . 3 1 . . . . . . . Secondary . | . . . . . . . . . . Self-Inflicted Damage 41 | . 41 . . . . . . . . Shots 2 | . 2 . . . . . . . . Rammed . | . . . . . . . . . . Targets Rammed . | . . . . . . . . . . Kicked . | . . . . . . . . . . Crushed . | . . . . . . . . . . Highest Temperature 499 | 120 180 499 . 21 5 273 21 . 359 Average Temperature 84 | 43 56 293 . 8 3 121 17 . 188 Received Heat Transfer 1585 | . 297 739 . 21 18 18 18 . 474 Siege Activations . | . . . . . . . . . . Martial Activations . | . . . . . . . . . . Shielding Activations . | . . . . . . . . . . Robots Disrupted 1 | . 1 . . . . . . . . Combat Hostiles 1 | . 1 . . . . . . . . Robots Corrupted 1 | . 1 . . . . . . . . Combat Hostiles . | . . . . . . . . . . Parts Fried 3 | . 3 . . . . . . . . Impact Corruptions . | . . . . . . . . . . Robots Melted . | . . . . . . . . . . Combat Hostiles . | . . . . . . . . . . Parts Melted 1 | 1 . . . . . . . . . Heat Transferred 895 | 583 312 . . . . . . . . Parts Sabotaged . | . . . . . . . . . . Parts Stolen . | . . . . . . . . . . Parts Stripped . | . . . . . . . . . . Power Chain Reactions 3 | . 3 . . . . . . . . Alert | -11 -10 -10 -9 -6 -5 -4 -3 -3 -3 ------- Run | Yrd Mat Sub Scr Fac Fac Fac Res Qua Frg Maximum Alert Level 1 | . 1 . . . . 1 1 . 1 Low Security (%) 90 | 100 82 . . 100 100 79 98 100 72 Level 1 9 | . 17 . . . . 20 1 . 27 Level 2 . | . . . . . . . . . . Level 3 . | . . . . . . . . . . Level 4 . | . . . . . . . . . . Level 5 . | . . . . . . . . . . High Security . | . . . . . . . . . . Max Security . | . . . . . . . . . . Peak Influence 346 | 10 237 . . 51 123 346 214 172 271 Initial 176 | . . . . . 19 60 176 108 69 Average 88 | 1 118 . . 6 22 140 150 146 122 Influence Increases 2123 | 25 542 15 . 94 325 486 198 106 332 Destroy 0b10 Robot/C 380 | . 340 . . . 20 20 . . . Destroy 0b10 Robot/NC 85 | 25 35 . . . 10 5 5 . 5 Destroy Leader 108 | . 90 . . . 4 12 . . 2 Successful Hack 177 | . 13 . . 18 36 44 54 12 . Disable Machine 120 | . 15 . . . . 15 . 90 . Anti-Garrison Action 150 | . . . . . . . . . 150 Destroy Structure 128 | . 19 . . 1 60 30 4 4 10 Partial Spotted 75 | . . . . . 30 15 15 . 15 Lose Combat Pursuer 900 | . 30 15 . 75 165 345 120 . 150 Influence Decreases 1942 | 25 407 150 . 53 243 273 340 176 275 Entered New Map 452 | . . 66 . . 22 63 160 86 55 Time Decay 1270 | 25 387 84 . 43 221 180 130 80 120 Lost Part 210 | . 20 . . 10 . 30 40 10 100 Lost Ally 10 | . . . . . . . 10 . . Squads Dispatched 38 | . 5 . . 6 11 8 4 1 3 Investigation 23 | . 3 . . 5 6 5 2 1 1 Extermination 7 | . . . . 1 3 2 1 . . Reinforcement 6 | . 2 . . . 2 1 1 . . Assault 2 | . . . . . . . . . 2 Garrison . | . . . . . . . . . . Intercept . | . . . . . . . . . . Searches Triggered . | . . . . . . . . . . Construction Impeded . | . . . . . . . . . . Haulers Reinforced . | . . . . . . . . . . Active Scanning Responses . | . . . . . . . . . . Cargo Convoy Interrupts . | . . . . . . . . . . Stealth | -11 -10 -10 -9 -6 -5 -4 -3 -3 -3 --------- Run | Yrd Mat Sub Scr Fac Fac Fac Res Qua Frg Distress Signals 9 | . 1 . . 1 1 3 . 1 2 Communications Jammed . | . . . . . . . . . . Distress Signals . | . . . . . . . . . . Times Spotted 146 | . 24 4 . 9 16 40 28 5 20 Peak Tracking Total 19 | . 3 3 . 7 6 19 17 3 9 Tactical Retreats 24 | . 2 1 . 3 4 6 3 . 5 Traps | -11 -10 -10 -9 -6 -5 -4 -3 -3 -3 ------- Run | Yrd Mat Sub Scr Fac Fac Fac Res Qua Frg Traps Triggered 7 | . 3 . . 1 . . . . 3 Indirectly . | . . . . . . . . . . Trap Hack Attempts . | . . . . . . . . . . Triggered . | . . . . . . . . . . Disarmed . | . . . . . . . . . . Reprogrammed . | . . . . . . . . . . Reused . | . . . . . . . . . . Traps Extracted . | . . . . . . . . . . Installed . | . . . . . . . . . . Triggered . | . . . . . . . . . . Most Traps Carried 3 | . . . 3 2 2 1 1 1 1 Machines | -11 -10 -10 -9 -6 -5 -4 -3 -3 -3 ---------- Run | Yrd Mat Sub Scr Fac Fac Fac Res Qua Frg Machines Disabled 9 | . 1 . . . . 1 . 6 1 Max in Single Turn 1 | . 1 . . . . 1 . 1 1 Garrison Access 3 | . . . . . 1 . 1 . 1 Machines Repaired . | . . . . . . . . . . Machines Dismantled . | . . . . . . . . . . Machines Sabotaged . | . . . . . . . . . . Overloaded Fab Kills . | . . . . . . . . . . Hacking | -11 -10 -10 -9 -6 -5 -4 -3 -3 -3 --------- Run | Yrd Mat Sub Scr Fac Fac Fac Res Qua Frg Machines Accessed 58 | . 6 . 3 10 15 10 8 4 2 Terminals 24 | . 6 . . 2 5 3 3 4 1 Fabricators 3 | . . . . 1 1 1 . . . Repair Stations 1 | . . . . . . 1 . . . Recycling Units 17 | . . . . 5 6 4 2 . . Scanalyzers 6 | . . . . 1 2 1 2 . . Garrison Access 4 | . . . . 1 1 . 1 . 1 Total Hacks 120 | . 14 . 12 13 28 22 18 8 5 Successful 73 | . 11 . 12 6 15 12 11 4 2 Failed 45 | . 3 . . 7 12 9 7 4 3 Catastrophic 11 | . . . . 2 5 2 . 1 1 Database Lockouts 2 | . . . . . 1 1 . . . Manual 61 | . 10 . . 7 14 13 10 5 2 Terminals 54 | . 14 . . 3 8 7 11 8 3 Fabricators 4 | . . . . 2 1 1 . . . Repair Stations 3 | . . . . . . 3 . . . Recycling Units 27 | . . . . 5 11 8 3 . . Scanalyzers 13 | . . . . 1 6 3 3 . . Garrison Access 7 | . . . . 2 2 . 1 . 2 Terminal Hacks 25 | . 2 . 12 1 3 1 3 3 . Record 14 | . . . 11 . . . . 3 . Part Schematic 1 | . . . . . 1 . . . . Open Door 1 | . . . . . . . 1 . . Level Access Points 1 | . . . . 1 . . . . . Branch Access Points 1 | . . . . . . . 1 . . Emergency Access Points 2 | . 1 . . . . . 1 . . Locate Traps 1 | . 1 . . . . . . . . Recall Investigation 2 | . . . . . 1 1 . . . Hauler Manifests 1 | . . . . . 1 . . . . Proto ID Catalog 1 | . . . 1 . . . . . . Fabricator Hacks 2 | . . . . . 1 1 . . . Network Status 2 | . . . . . 1 1 . . . Repair Station Hacks 2 | . . . . . . 2 . . . Scan Component 2 | . . . . . . 2 . . . Recycling Unit Hacks . | . . . . . . . . . . Scanalyzer 9 | . . . . . 5 2 2 . . Retrieve Study 9 | . . . . . 5 2 2 . . Garrison Access Hacks 2 | . . . . . 1 . 1 . . Seal Access 2 | . . . . . 1 . 1 . . Unauthorized Hacks 33 | . 9 . . 5 5 6 5 1 2 Terminals 19 | . 9 . . . 1 3 3 1 2 Assimilate 2 | . . . . . . 1 1 . . Botnet 11 | . 4 . . . 1 2 2 1 1 Skim 6 | . 5 . . . . . . . 1 Fabricators . | . . . . . . . . . . Repair Stations . | . . . . . . . . . . Recycling Units 14 | . . . . 5 4 3 2 . . Fedlink 14 | . . . . 5 4 3 2 . . Scanalyzers . | . . . . . . . . . . Garrison Access . | . . . . . . . . . . Data Cores Recovered . | . . . . . . . . . . Used . | . . . . . . . . . . Hacking Detections 31 | . 4 . . 4 9 7 3 2 2 Full Trace Events 6 | . . . . . 2 2 . 1 1 Feedback Events 1 | . . . . . . 1 . . . Corruption 1 | . . . . . . 1 . . . Feedback Blocked . | . . . . . . . . . . Robot Schematics Acquired . | . . . . . . . . . . Robots Built . | . . . . . . . . . . Authchips . | . . . . . . . . . . Time . | . . . . . . . . . . Total Robot Build Rating . | . . . . . . . . . . Part Schematics Acquired 1 | . . . . . 1 . . . . Parts Built . | . . . . . . . . . . Authchips . | . . . . . . . . . . Time . | . . . . . . . . . . Total Part Build Rating . | . . . . . . . . . . Part Studies Acquired 9 | . . . . . 5 2 2 . . Parts Repaired . | . . . . . . . . . . Time . | . . . . . . . . . . Parts Recycled . | . . . . . . . . . . Recycled Matter . | . . . . . . . . . . Retrieved Matter . | . . . . . . . . . . Retrieved Components . | . . . . . . . . . . Parts Scanalyzed . | . . . . . . . . . . Part Schematics Acquired . | . . . . . . . . . . Parts Damaged . | . . . . . . . . . . Bothacking | -11 -10 -10 -9 -6 -5 -4 -3 -3 -3 ------------ Run | Yrd Mat Sub Scr Fac Fac Fac Res Qua Frg Used RIF Installer . | . . . . . . . . . . Robots Hacked . | . . . . . . . . . . Non-combat . | . . . . . . . . . . Combat . | . . . . . . . . . . Robot Hacks Applied . | . . . . . . . . . . Relay Couplers Released 1 | . . . . . . . . . 1 Machine Destruction 1 | . . . . . . . . . 1 Fabnet Peak Effective % . | . . . . . . . . . . Robots Rewired 1 | . . . . . 1 . . . . Allies Hacked . | . . . . . . . . . . Hacks Repelled . | . . . . . . . . . . Allies | -11 -10 -10 -9 -6 -5 -4 -3 -3 -3 -------- Run | Yrd Mat Sub Scr Fac Fac Fac Res Qua Frg Total Allies 3 | . . . . . 1 1 1 . . Largest Group 1 | . . . . . 1 1 1 . . Highest-Rated Group 49 | . . . . . 49 26 9 . . Highest-Rated Ally 49 | . . . . . 49 26 9 . . Total Orders . | . . . . . . . . . . Ally Attacks 6 | . . . . . 6 . . . . Total Damage 158 | . . . . . 158 . . . . Kills 1 | . . . . . 1 . . . . Allies Corrupted . | . . . . . . . . . . Allies Melted . | . . . . . . . . . . Intel | -11 -10 -10 -9 -6 -5 -4 -3 -3 -3 ------- Run | Yrd Mat Sub Scr Fac Fac Fac Res Qua Frg Active Infowar (turns) 6273 | 47 1129 1197 1749 224 872 362 276 171 246 Optics 2144 | . . . . 217 872 362 276 171 246 Sensors 2001 | . . . . 212 872 234 276 170 237 Structural 1903 | . . . . 216 872 266 236 170 143 Seismic 4147 | 47 1129 1197 1749 25 . . . . . ECM 7 | . . . . . . . . 7 . Robot Analysis Total . | . . . . . . . . . . Derelict Logs Recovered 5 | . . . 5 . . . . . . Drone Launches . | . . . . . . . . . . Drone Recoveries . | . . . . . . . . . . Exploration | -11 -10 -10 -9 -6 -5 -4 -3 -3 -3 ------------- Run | Yrd Mat Sub Scr Fac Fac Fac Res Qua Frg Turns Passed 6430 | 156 1129 1245 1749 224 872 362 276 171 246 Spaces Moved 8001 | 69 558 754 1458 603 2086 1002 558 407 506 Core 38 | 11 . . . . . . . . 27 Treads 1234 | 58 558 618 . . . . . . . Legs . | . . . . . . . . . . Wheels 1594 | . . 136 1458 . . . . . . Hover . | . . . . . . . . . . Flight 5135 | . . . . 603 2086 1002 558 407 479 Fastest Speed 25 | 50 160 120 100 25 27 25 25 27 26 Average Speed 65 | 143 160 152 118 28 28 25 25 27 30 Slowest Speed 160 | 160 160 160 120 31 29 29 27 27 107 Overloaded Moves 166 | . . . . 11 . . . . 155 Propulsion Burnouts . | . . . . . . . . . . Robots Hopped 55 | . . . . 4 21 16 9 . 5 Potential Cave-ins . | . . . . . . . . . . Cave-ins Triggered . | . . . . . . . . . . Teleports 1 | . . . . . . . . 1 . Exploration Rate (%) 44 | 7 90 41 86 31 57 36 21 47 26 Regions Visited 9 Branch Regions 4 Pre-discovered Areas 4 | . 1 . 2 1 . . . . . Known Exits Taken 6 | . 1 . . 1 1 1 1 1 . Unknown Exits Taken 3 | 1 . 1 1 . . . . . . Scrap Searched 15 | . . 7 8 . . . . . . Spaces Dug 54 | . . . . 1 29 15 2 2 5 Terrain Destroyed 74 | . 20 . . 1 29 15 2 2 5 Melee 54 | . . . . 1 29 15 2 2 5 Projectile . | . . . . . . . . . . AOE 20 | . 20 . . . . . . . . Terrain Rammed . | . . . . . . . . . . Walls Destroyed . | . . . . . . . . . . Machines Disabled . | . . . . . . . . . . Actions | -11 -10 -10 -9 -6 -5 -4 -3 -3 -3 --------- Run | Yrd Mat Sub Scr Fac Fac Fac Res Qua Frg Total 8762 | 100 686 808 1487 649 2280 1049 677 445 581 Wait 367 | . 27 17 . 5 143 19 122 . 34 Move 7896 | 68 557 753 1457 594 2046 975 541 406 499 Hop 41 | . . . . 4 18 10 7 . 2 Pick Up 75 | 12 20 9 11 3 5 4 1 9 1 Fast Attach 29 | 1 2 . 2 3 8 7 2 3 1 Attach 41 | 6 3 4 4 11 3 2 1 6 1 Detach 8 | . . . . 4 1 . . 1 2 Swap 16 | . 6 2 . 2 3 2 . 1 . Drop 69 | . 15 1 13 6 13 8 . 7 6 Fire 91 | 13 56 22 . . . . . . . Melee 84 | . . . . 2 37 22 3 12 8 Ram . | . . . . . . . . . . Kick . | . . . . . . . . . . Crush . | . . . . . . . . . . Escape Stasis 42 | . . . . 15 . . . . 27 Rewire 3 | . . . . . 3 . . . . Trap . | . . . . . . . . . . Miscellaneous . | . . . . . . . . . . Route ------- -11/Scrapyard -10/Materials (discovered 5 exits: [*Mat x3] / [*Min] / *Sub) -10/Subcaves (discovered 2 exits: [*Mat] / *Scr) -9/Scraptown (discovered 2 exits: *Fac x2) -6/Factory (discovered 5 exits: *Fac x4 / *Low) -5/Factory (discovered 3 exits: *Fac / *Upp x2) -4/Factory (discovered 3 exits: *Res x2 / *Upp) -3/Research (discovered 2 exits: *Qua x2) -3/Quarantine (discovered 2 exits: [*Sec] / *Frg) -3/Protoforge History --------- Turn | Location | Event 28 | -11/Scrapyard | Discovered new exit (range 14) 157 | -11/Scrapyard | Entered Materials 289 | -10/Materials | Discovered new exit (range 13) 322 | -10/Materials | Build established: Mutant 683 | -10/Materials | Discovered new exit (range 15) 739 | -10/Materials | Discovered new exit (range 15) 1018 | -10/Materials | Discovered new exit (range 11) 1146 | -10/Materials | Learned Recycling recycling unit intel 1174 | -10/Materials | Learned location of Subcaves (-10) 1200 | -10/Materials | Identified exit to Subcaves 1200 | -10/Materials | Learned location of 1 exit from Materials 1201 | -10/Materials | Learned 4 Subcaves zone layouts 1217 | -10/Materials | Learned Storage security intel 1286 | -10/Materials | Entered Subcaves 1287 | -10/Subcaves | Approached by a straggling Scientist 1475 | -10/Subcaves | Shifting Twisted Machinery released Flamer 1514 | -10/Subcaves | Shifting Twisted Machinery released Sub. Machine Gun 2269 | -10/Subcaves | Discovered new exit (range 14) 2331 | -10/Subcaves | Core integrity fell below 50% 2365 | -10/Subcaves | Lost 3 parts (1p2n) 2452 | -10/Subcaves | Core integrity fell below 20% 2531 | -10/Subcaves | Entered Scraptown 2668 | -9/Scraptown | Visited Comm Corps 2696 | -9/Scraptown | Visited Fellowship of the Rings 2708 | -9/Scraptown | Visited Bundlers 2965 | -9/Scraptown | Visited Red Mages 2974 | -9/Scraptown | Visited CR-KLE's Repair Center 2999 | -9/Scraptown | Visited Awakened 3015 | -9/Scraptown | Visited TADAMA 3071 | -9/Scraptown | Scanned Subdweller tech in exchange for log data 3074 | -9/Scraptown | Learned location of Armory (-4) 3075 | -9/Scraptown | Learned location of 1 exit from Lower Caves 3076 | -9/Scraptown | Learned location of Warlord (-5) 3077 | -9/Scraptown | Learned Research terminal intel 3093 | -9/Scraptown | Discovered new exit (range 11) 3192 | -9/Scraptown | Visited UFD Registry 3192 | -9/Scraptown | Registered with UFD as "Toolcutter" 3217 | -9/Scraptown | Visited Curators Association 3232 | -9/Scraptown | Visited Scrapoid Research Area 3246 | -9/Scraptown | Visited Science Testing Area 3310 | -9/Scraptown | Visited Scrap Suit Storage 3326 | -9/Scraptown | Visited Infowarlord's Domain 3351 | -9/Scraptown | Visited Abandonware Association 3363 | -9/Scraptown | Learned abandonware demo "KABOOM.EXE" 3363 | -9/Scraptown | Learned abandonware demo "MELTYB.EXE" 3390 | -9/Scraptown | Visited Junk Repository 3429 | -9/Scraptown | Visited Chapter 10 3448 | -9/Scraptown | Visited Science Guys 3558 | -9/Scraptown | Found Exp. Sensor Array 4211 | -9/Scraptown | Met Optimus 4211 | -9/Scraptown | Accepted into 0bPrime 4275 | -9/Scraptown | Discovered new exit (range 5) 4280 | -9/Scraptown | Entered Factory 4280 | -6/Factory | Evolved 8 slots: Propulsion x4, Utility x4 4305 | -6/Factory | Loaded intel: 8 recycling unit locations 4317 | -6/Factory | Spotted B-75 Beast 4318 | -6/Factory | Learned location of Protoforge (-3) 4355 | -6/Factory | Discovered new exit (range 3) 4356 | -6/Factory | Identified exit to Lower Caves 4375 | -6/Factory | Found Prototype Launcher 4375 | -6/Factory | Identified Rocket Array 4379 | -6/Factory | Discovered new exit (range 3) 4379 | -6/Factory | Identified exit to Factory 4504 | -6/Factory | Entered another Factory area 4504 | -5/Factory | Evolved 2 slots: Power x1, Utility x1 4505 | -5/Factory | Identified exit to Upper Caves 4623 | -5/Factory | Build established: Scout 4794 | -5/Factory | Discovered exit to Upper Caves (range 5) 4996 | -5/Factory | Loaded intel: 8 recycling unit locations 5066 | -5/Factory | Build established: Scientist-Scout 5073 | -5/Factory | Spotted B-75 Beast 5203 | -5/Factory | Central database locked down 5330 | -5/Factory | Discovered new exit (range 8) 5332 | -5/Factory | Identified exit to Factory 5376 | -5/Factory | Entered another Factory area 5376 | -4/Factory | Evolved 2 slots: Propulsion x1, Utility x1 5455 | -4/Factory | Central database locked down 5481 | -4/Factory | Loaded intel: 8 recycling unit locations 5506 | -4/Factory | Discovered new exit (range 22) 5514 | -4/Factory | Identified exit to Upper Caves 5585 | -4/Factory | Spotted B-86 Titan 5600 | -4/Factory | Discovered new exit (range 15) 5678 | -4/Factory | Lost 3 parts (2u1w) 5726 | -4/Factory | Discovered new exit (range 10) 5737 | -4/Factory | Identified exit to Research 5738 | -4/Factory | Entered Research 5738 | -3/Research | Evolved 2 slots: Propulsion x1, Utility x1 5739 | -3/Research | Loaded intel: 24 terminal locations 5977 | -3/Research | Identified exit to Quarantine 5981 | -3/Research | Loaded intel: 5 recycling unit locations 6014 | -3/Research | Entered Quarantine 6036 | -3/Quarantine | Found Alien Artifact 6037 | -3/Quarantine | Identified Phase Armor 6044 | -3/Quarantine | Lost 4 parts (2n2u) 6046 | -3/Quarantine | Found Alien Artifact 6046 | -3/Quarantine | Identified Phase Redirector 6056 | -3/Quarantine | Found Alien Slashing Weapon 6057 | -3/Quarantine | Identified Sigix Broadsword 6106 | -3/Quarantine | Found Alien Artifact 6121 | -3/Quarantine | Found Alien Artifact 6121 | -3/Quarantine | Identified Transdimensional Reconstructor 6121 | -3/Quarantine | Warped through subspace 6144 | -3/Quarantine | Identified Subatomic Replicator 6144 | -3/Quarantine | Used Subatomic Replicator to replicate Adv. ECM Suite 6146 | -3/Quarantine | Found Transdimensional Reconstructor 6148 | -3/Quarantine | Found Alien Artifact 6153 | -3/Quarantine | Found Alien Artifact 6155 | -3/Quarantine | Found Alien Artifact 6162 | -3/Quarantine | Spotted Fortress 6184 | -3/Quarantine | Discovered new exit (range 6) 6184 | -3/Quarantine | Discovered new exit (range 6) 6185 | -3/Quarantine | Identified exit to Protoforge 6185 | -3/Quarantine | Entered Protoforge 6185 | -3/Protoforge | Spotted B-86 Titan 6198 | -3/Protoforge | Spotted Hotshot 6225 | -3/Protoforge | Spotted Hotshot 6226 | -3/Protoforge | Superfortress began startup sequence 6256 | -3/Protoforge | Spotted Hotshot 6256 | -3/Protoforge | Spotted Hotshot 6272 | -3/Protoforge | Spotted AP7-3 6272 | -3/Protoforge | Spotted AP7-3 6313 | -3/Protoforge | Found Prototype Device 6313 | -3/Protoforge | Identified Cep. Antimissile System 6357 | -3/Protoforge | Lost 3 parts (2n1u) 6408 | -3/Protoforge | Spotted V202-q 6417 | -3/Protoforge | Core integrity fell below 50% 6423 | -3/Protoforge | Core integrity fell below 20% 6431 | -3/Protoforge | Destroyed by Superfortress with Concept Heavy Railcannon Last Messages --------------- 06422_ Penetrated by Railslug. 06422_ Adv. Sensor Array destroyed. 06422_ Critical hit (Blast). 06422_ Railslug penetrates Wall. 06422_ Railslug penetrates Earth. 06423_ System corrupted: Energy discharge (-33). 06424_ V202-q suddenly sparks and explodes in a catastrophic instability. [Achievement: Definitely A Prototype] 06424_ V202-q destroyed. 06424_ U-05 Engineer destroyed. 06425_ Railslug penetrates Machine. 06425_ Machine disabled. 06425_ Railslug penetrates Wall. 06428_ Penetrated by Railslug. 06428_ Knocked back. 06428_ Machine disabled. 06431_ Penetrated by Railslug. 06431_ Railslug penetrates Wall. 06431_ Penetrated by Railslug. 06431_ Structural Scanner destroyed. Map ----- +----------------------------------------------------+ | ???????????????? #???????????????????????????????? | | ## ########### ##??????????????????????????????? | | ############## ##??????????????????????????????? | | ] ##??????????????????????????????? | | ! ##??????????????????????????????? | | ##??????????????????????????????? | | # #########??????????????????????????????? | | # ######?????????????????????????????????? | | # | ##?????????????????????????????????????? | | #! ! ##?????????????????????????????????????? | | # *= ##?????????????????????????????????????? | | ## ###?????????????????????????????????????? | | ?# " #?????????????????????????????????????? | | ## #########???????????????????????????????? | | "" """"""""#???????????????????????????????? | | """" #???????????????????????????????? | | "" #???######?????####?????????????? | | ###?#""""#????""""#?????????????? | | ;;### !#####!!!!#########?????? | | #?????? | | #?????? | | % #?????? | | #?????? | | % #?????? | | ??????? | | ##### [@;;;## !!!###???????????? | | """""""""""""""""#???#""" ; ##?????#?????????????? | | """""""""""""""""#???########????????????????????? | | """""""""""""""""#???????????????????????????????? | | ##################???????????????????????????????? | | ?????????????????????????????????????????????????? | | ?????????????????????????????????????????????????? | | ?????????????????????????????????????????????????? | | ?????????????????????????????????????????????????? | | ?????????????????????????????????????????????????? | | ?????????????????????????????????????????????????? | | ?????????????????????????????????????????????????? | | ?????????????????????????????????????????????????? | | ?????????????????????????????????????????????????? | | ?????????????????????????????????????????????????? | | ?????????????????????????????????????????????????? | | ?????????????????????????????????????????????????? | | ?????????????????????????????????????????????????? | | ##???????????????????????????????????????????????? | | ##???????????????????????????????????????????????? | | ##???????????????????????????????????????????????? | | ##???????????????????????????????????????????????? | | ##???????????????????????????????????????????????? | | ##???????????????????????????????????????????????? | | ##???????????????????????????????????????????????? | +----------------------------------------------------+ Best States ------------- Heat Dissipation 72 Energy Generation 29 Energy Capacity 250 Matter Stores 300 Matter Capacity 300 Sight Range 22 Robot Scan Range 20 Terrain Scan Density 10 ECM Strength 2 Armor Coverage 150 Propulsion Shielding 66 Phase Shifting 10 Evasion (%) 77 Recoil Reduction 2 Offensive Hacking 14 Defensive Hacking 14 Item Schematics ----------------- Adv. Transmission Jammer | -5/Factory | Hacked Robot Schematics ------------------ None Fabricated ------------ Nothing Repaired ---------- Nothing Studied --------- Nuclear Pulse Array | -5/Factory | Hacked Flight Unit | -5/Factory | Hacked Nuclear Pulse Thruster | -5/Factory | Hacked Field Propulsion Drive | -5/Factory | Hacked Lgt. Fission Core | -5/Factory | Hacked Xenon Bombardment Thruster | -4/Factory | Hacked Mic. Fission Core | -4/Factory | Hacked Force Lance | -3/Research | Hacked Smartbomb Launcher | -3/Research | Hacked Alien Tech Used ----------------- Phase Armor Phase Redirector Sigix Broadsword Transdimensional Reconstructor Subatomic Replicator Achievements -------------- Definitely A Prototype That Tickles Challenges ------------ None Game ------ Seed LightpackReactionHumpback Manual? 0 Play Time 01:16:40 Cumulative 220.3 hours Start 2026.01.02 @ 15:17:03 End 2026.01.02 @ 16:34:53 Sessions 1 Manual Loads 0 Difficulty Rogue Special Mode None Game No. 308 Rogue 308 Adventurer 0 Explorer 0 Win Type - Total 3 Types 2/0/0/1/0/0/0/0/0/0 Lore% 74 Gallery% 74 Achievement% 50 Wizard Run 0 Options --------- Layout 0 ASCII 0 Keyboard 0 Movement Mouse Keybinds 0 Fullscreen 1 Font 16/SmallcapsGlow Map View 75x55 Zoom Use 0% Tactical HUD 1 Map Filters NONE Filters NONE Steam 1 RUN: f8fc8bc0-fdf8-4176-a4fc-c6c63474b403